bitfinex/quotes_BTCUSD_20260117
["timestamp","ask_amount","ask_price","bid_price","bid_amount"]
[1768664948643,0.010478,95438.0,95434.0,0.01047844]
[1768664948848,0.06286706,95441.0,95437.0,0.01047811]
[1768664948849,0.01047767,95441.0,95437.0,0.01047811]
[1768664949174,0.01047811,95437.0,95434.0,0.01047844]
[1768664949509,0.01047789,95439.0,95435.0,0.06286986]
[1768664950044,0.01047734,95444.0,95436.0,0.01047822]
[1768664950363,0.01047734,95444.0,95439.0,0.06286734]
[1768664950570,0.01047745,95443.0,95440.0,0.01047778]
[1768664950748,0.01047745,95443.0,95439.0,0.01047789]
[1768664950974,0.01047756,95442.0,95438.0,0.010478]
[1768664951526,0.01047745,95443.0,95440.0,0.01047778]
[1768664951885,0.01047756,95442.0,95438.0,0.010478]
[1768664952992,0.06286562,95442.0,95438.0,0.010478]
[1768664953565,0.01047756,95442.0,95438.0,0.010478]
[1768664954046,0.01047767,95441.0,95438.0,0.010478]
[1768664954186,0.01047778,95440.0,95433.0,0.01047855]
[1768664954383,0.01047789,95439.0,95434.0,0.05239171]
[1768664954629,0.01047789,95439.0,95434.0,0.05239222]
[1768664954837,0.01047789,95439.0,95435.0,0.05239163]
[1768664955127,0.01047789,95439.0,95434.0,0.01047844]
[1768664955327,0.010478,95438.0,95435.0,0.01047833]
[1768664955536,0.010478,95438.0,95434.0,0.01047844]
[1768664955945,0.06286883,95437.0,95433.0,0.01047855]
[1768664956189,0.06286883,95437.0,95431.0,0.06287254]
[1768664956190,0.01047833,95435.0,95431.0,0.01047877]
[1768664956310,0.0628687,95437.0,95433.0,0.01047855]
[1768664956709,0.01047811,95437.0,95430.0,4.724e-05]
[1768664956910,0.01047844,95434.0,95430.0,0.01047888]
[1768664957149,0.06287093,95434.0,95430.0,0.01047888]
[1768664957373,0.06287103,95434.0,95430.0,0.01047888]
[1768664957749,0.06287103,95434.0,95428.0,0.0104791]
[1768664957750,0.01047855,95433.0,95426.0,0.74737226]
[1768664957929,0.01047877,95431.0,95428.0,0.0104791]
[1768664958556,0.01047855,95433.0,95428.0,0.0104791]
[1768664958757,0.01047877,95431.0,95428.0,0.0104791]
[1768664960476,0.01047899,95429.0,95426.0,0.00047219]
[1768664960802,0.01047877,95431.0,95429.0,0.00025138]
[1768664961141,0.01047866,95432.0,95429.0,0.01073037]
[1768664963282,0.06286924,95437.0,95431.0,0.05239377]
[1768664963486,0.01047833,95435.0,95431.0,0.01047877]
[1768664963868,0.06287011,95435.0,95431.0,0.01047877]
[1768664964406,0.01047844,95434.0,95430.0,0.01047888]
[1768664964981,0.01047866,95432.0,95429.0,0.00025138]
[1768664965438,0.01047866,95432.0,95429.0,0.01073037]
[1768664965791,0.01047866,95432.0,95429.0,0.00025138]
[1768664966196,0.01047844,95434.0,95429.0,0.00025138]
[1768664966398,0.01047734,95444.0,95440.0,0.01047778]
[1768664966626,0.01047734,95444.0,95441.0,0.01047767]
[1768664966875,0.13743723,95445.0,95441.0,0.01047767]
[1768664966876,0.13743723,95445.0,95442.0,0.01047756]
[1768664967025,0.12696,95445.0,95442.0,0.01047756]
[1768664967218,0.01047734,95444.0,95440.0,0.01047778]
[1768664967406,0.01047756,95442.0,95438.0,0.010478]
[1768664967602,0.01047767,95441.0,95438.0,0.010478]
[1768664967846,0.01047745,95443.0,95439.0,0.01047789]
[1768664968630,0.01047756,95442.0,95438.0,0.010478]
[1768664968826,0.01047745,95443.0,95439.0,0.01047789]
[1768664969116,0.13743723,95445.0,95441.0,0.01047767]
[1768664969532,0.01047734,95444.0,95441.0,0.01047767]
[1768664969728,0.13743723,95445.0,95442.0,0.01047756]
[1768664970080,0.06286429,95444.0,95440.0,0.01047778]
[1768664970232,0.01047756,95442.0,95439.0,0.01047789]
[1768664970674,0.02260619,95441.0,95439.0,0.01047789]
[1768664970836,0.02260619,95440.0,95438.0,0.010478]
[1768664971042,0.02260619,95439.0,95438.0,0.010478]
[1768664971471,0.12696,95445.0,95440.0,0.01047778]
[1768664971692,0.01047734,95444.0,95440.0,0.06286661]
[1768664971890,0.12696,95445.0,95441.0,0.01047767]
[1768664972909,0.13743723,95445.0,95442.0,0.01047756]
[1768664973112,0.12696,95445.0,95442.0,0.01047756]
[1768664973315,0.12696,95445.0,95441.0,0.01047767]
[1768664974375,0.13743723,95445.0,95441.0,0.01047767]
[1768664974552,0.12696,95445.0,95442.0,0.01047756]
[1768664975254,0.12696,95445.0,95443.0,0.05238675]
[1768664975457,0.00049376,95448.0,95445.0,0.01047723]
[1768664975882,0.00049376,95448.0,95446.0,0.05238559]
[1768664976044,0.00049376,95448.0,95445.0,0.01047723]
[1768664976855,0.00049376,95448.0,95446.0,0.05238564]
[1768664977053,0.12696,95451.0,95448.0,0.0104769]
[1768664977460,0.12696,95451.0,95446.0,0.06286168]
[1768664978188,0.01047657,95451.0,95447.0,0.01047701]
[1768664980128,0.06285961,95451.0,95447.0,0.01047701]
[1768664980328,0.01047657,95451.0,95448.0,0.0104769]
[1768664983651,0.01047646,95452.0,95448.0,0.0104769]
[1768664985390,0.03864343,95452.0,95448.0,0.0104769]
[1768664986345,0.01047646,95452.0,95448.0,0.0104769]
[1768664987111,0.01047636,95453.0,95449.0,0.01047679]
[1768664987312,0.01047636,95453.0,95448.0,0.0104769]
[1768664987313,0.02825717,95451.0,95448.0,0.0104769]
[1768664988242,0.03873374,95451.0,95448.0,0.0104769]
[1768664988762,0.02825717,95451.0,95448.0,0.0104769]
[1768664990364,0.02825717,95450.0,95448.0,0.0104769]
[1768664991762,0.0104769,95448.0,95442.0,0.01047756]
[1768664991963,0.01047679,95449.0,95443.0,0.05238728]
[1768664992275,0.01047701,95447.0,95443.0,0.01047745]
[1768664993383,0.01047723,95445.0,95440.0,0.01047778]
[1768664993566,0.01047745,95443.0,95440.0,0.01047778]
[1768664994083,0.01047745,95443.0,95438.0,0.010478]
[1768664994247,0.01047745,95443.0,95439.0,0.01047789]
[1768664994451,0.01047756,95442.0,95438.0,0.010478]
[1768664995168,0.01047756,95442.0,95438.0,0.06286798]
[1768664995373,0.01047756,95442.0,95438.0,0.010478]
[1768664996658,0.01047767,95441.0,95438.0,0.010478]
[1768664997270,0.01047767,95441.0,95437.0,0.12696]
[1768664997475,0.01047856,95435.0,95423.0,0.01047965]
[1768664997610,0.01047877,95431.0,95426.0,0.01095151]
[1768664997815,0.05239607,95427.0,95426.0,1e-08]
[1768664998066,0.01047921,95427.0,95425.0,0.02096]
[1768664998259,0.01095114,95427.0,95425.0,0.02096]
[1768664998579,0.00047193,95427.0,95425.0,0.02096]
[1768664998799,0.02095754,95426.0,95425.0,0.02096]
[1768664999004,0.01751635,95426.0,95425.0,0.02096]
[1768664999156,0.01751635,95426.0,95424.0,1e-08]
[1768664999318,0.00047193,95427.0,95424.0,1e-08]
[1768664999319,0.01095114,95427.0,95424.0,1e-08]
[1768665000410,0.00047193,95427.0,95424.0,1e-08]
[1768665000548,0.01095114,95427.0,95424.0,1e-08]
[1768665001156,0.0633476,95427.0,95424.0,1e-08]
[1768665001453,0.0633476,95427.0,95418.0,0.05260093]
[1768665001454,0.01047987,95421.0,95418.0,0.0002]
[1768665001635,0.01047987,95421.0,95412.0,0.05256521]
[1768665001636,0.01048042,95416.0,95412.0,0.000161]
[1768665001852,0.01048042,95416.0,95412.0,0.01064186]
[1768665002032,0.0104802,95418.0,95413.0,0.01048075]
[1768665002033,0.01048031,95417.0,95413.0,0.01048075]
[1768665002205,0.01048042,95416.0,95412.0,0.01064186]
[1768665002816,0.0104802,95418.0,95414.0,0.01048064]
[1768665003025,0.01047998,95420.0,95416.0,0.01048042]
[1768665003249,0.01047976,95422.0,95418.0,0.0104802]
[1768665004954,0.01047987,95421.0,95417.0,0.01048031]
[1768665005574,0.06287989,95420.0,95416.0,0.01048042]
[1768665005780,0.01048009,95419.0,95415.0,0.01048053]
[1768665005980,0.01048097,95411.0,95405.0,0.01048163]
[1768665006125,0.25303995,95415.0,95406.0,0.01048152]
[1768665006325,0.01048108,95410.0,95406.0,0.01048152]
[1768665006527,0.01048108,95410.0,95405.0,0.01048163]
[1768665006731,0.01048108,95410.0,95403.0,1e-08]
[1768665006732,0.01048152,95406.0,95403.0,1e-08]
[1768665006932,0.05240957,95403.0,95396.0,0.05241303]
[1768665007173,0.01048185,95403.0,95397.0,0.0104825]
[1768665007331,0.00948196,95402.0,95398.0,0.0104824]
[1768665008166,0.00948196,95402.0,95397.0,0.0104825]
[1768665008167,0.01048207,95401.0,95397.0,0.0104825]
[1768665008367,0.00948196,95402.0,95397.0,0.0104825]
[1768665008566,0.00948196,95402.0,95398.0,0.0104824]
[1768665008732,0.00948196,95402.0,95399.0,0.01048229]
[1768665008934,0.01048185,95403.0,95400.0,0.01048218]
[1768665009148,0.01048218,95400.0,95396.0,0.001]
[1768665009350,0.01048229,95399.0,95396.0,0.001]
[1768665009577,0.0084823,95399.0,95396.0,0.001]
[1768665009982,0.01048218,95400.0,95396.0,0.01148261]
[1768665010394,0.01048218,95400.0,95397.0,0.0104825]
[1768665010395,0.00888574,95400.0,95397.0,0.0104825]
[1768665010580,0.01048218,95400.0,95396.0,0.01048261]
[1768665010776,0.01048196,95402.0,95399.0,0.01048229]
[1768665011318,0.01048196,95402.0,95397.0,0.0104825]
[1768665011521,0.01048207,95401.0,95397.0,0.0104825]
[1768665012443,0.01048218,95400.0,95396.0,0.01048261]
[1768665013275,0.01048229,95399.0,95395.0,0.01048272]
[1768665013603,0.06289382,95399.0,95395.0,0.01048272]
[1768665013885,0.0104825,95397.0,95394.0,0.01048283]
[1768665014035,0.05241207,95398.0,95394.0,0.01048283]
[1768665014036,0.01048218,95400.0,95397.0,0.0104825]
[1768665014448,0.01048218,95400.0,95395.0,0.06289591]
[1768665014641,0.01048207,95401.0,95397.0,0.0104825]
[1768665014804,0.01048207,95401.0,95398.0,0.0104824]
[1768665015010,0.01048207,95401.0,95398.0,0.01052967]
[1768665015714,0.01048185,95403.0,95398.0,0.01052967]
[1768665015932,0.01048174,95404.0,95401.0,0.01048207]
[1768665016131,0.01048152,95406.0,95402.0,0.01048196]
[1768665016335,0.26352103,95410.0,95405.0,0.01048163]
[1768665016549,0.01048108,95410.0,95405.0,0.01048163]
[1768665017047,0.01048108,95410.0,95405.0,0.06288963]
[1768665017253,0.01048119,95409.0,95405.0,0.01048163]
[1768665017457,0.01048108,95410.0,95406.0,0.01048152]
[1768665017657,0.01048119,95409.0,95405.0,0.01048163]
[1768665018001,0.0104813,95408.0,95404.0,0.01048174]
[1768665019665,0.0104813,95408.0,95405.0,0.01048163]
[1768665019869,0.12696,95411.0,95408.0,0.0104813]
[1768665020066,0.13744097,95411.0,95408.0,0.0104813]
[1768665020437,0.13744097,95411.0,95406.0,0.06288902]
[1768665021059,0.13744097,95411.0,95404.0,0.01048174]
[1768665021255,0.01048119,95409.0,95404.0,0.01048174]
[1768665021422,0.01048141,95407.0,95402.0,0.01048196]
[1768665021617,0.01048141,95407.0,95403.0,0.01048185]
[1768665021846,0.01048141,95407.0,95399.0,0.05241131]
[1768665021847,0.01048152,95406.0,95398.0,0.01052967]
[1768665022055,0.06289066,95404.0,95399.0,0.01048229]
[1768665022256,0.01048185,95403.0,95399.0,0.01048229]
[1768665023833,0.01048185,95403.0,95400.0,0.01048218]
[1768665025261,0.01048174,95404.0,95401.0,0.01048207]
[1768665025903,0.01048152,95406.0,95402.0,0.01048196]
[1768665026053,0.01048086,95412.0,95405.0,0.06288974]
[1768665026658,0.13744097,95411.0,95406.0,0.01048152]
[1768665027031,0.01048119,95409.0,95405.0,0.01048163]
[1768665027748,0.01048108,95410.0,95407.0,0.01048141]
[1768665027928,0.01048119,95409.0,95405.0,0.01048163]
[1768665028519,0.01048119,95409.0,95404.0,0.01048174]
[1768665028843,0.0104813,95408.0,95404.0,0.01048174]
[1768665029282,0.0628878,95408.0,95404.0,0.01048174]
[1768665029491,0.01048119,95409.0,95404.0,0.0524085]
[1768665029994,0.01048119,95409.0,95403.0,0.06289007]
[1768665030194,0.01048119,95409.0,95404.0,0.05240819]
[1768665030609,0.01048119,95409.0,95404.0,0.0524087]
[1768665030810,0.01048108,95410.0,95405.0,0.05240812]
[1768665030988,0.13744097,95411.0,95406.0,0.06288912]
[1768665031396,0.13744097,95411.0,95406.0,0.01048152]
[1768665031619,0.13744097,95411.0,95406.0,0.06288903]
[1768665031832,0.18984585,95411.0,95406.0,0.01048152]
[1768665032172,0.0104813,95408.0,95404.0,0.01048174]
[1768665032374,0.01048141,95407.0,95404.0,0.01048174]
[1768665033015,0.05240925,95403.0,95399.0,0.77566603]
[1768665033238,0.01048207,95401.0,95393.0,0.77582703]
[1768665033445,0.01048207,95401.0,95394.0,0.01048283]
[1768665033627,0.01048207,95401.0,95395.0,0.01048272]
[1768665033804,0.05241144,95400.0,95395.0,0.01048272]
[1768665034004,0.05241144,95400.0,95396.0,0.01048261]
[1768665034430,0.05241096,95400.0,95395.0,0.01048272]
[1768665034675,0.01048207,95401.0,95394.0,0.01048283]
[1768665035017,0.0524109,95400.0,95395.0,0.01048272]
[1768665035170,0.0524109,95400.0,95396.0,0.01048261]
[1768665036861,0.05241145,95399.0,95394.0,0.01048283]
[1768665037112,0.0524109,95400.0,95395.0,0.01048272]
[1768665037268,0.05241145,95399.0,95394.0,0.01048283]
[1768665037476,0.05241145,95399.0,95395.0,0.01048272]
[1768665038232,0.01048261,95396.0,95393.0,0.01064394]
[1768665038435,0.06289374,95399.0,95393.0,0.01064394]
[1768665038436,0.06289457,95398.0,95393.0,0.01064394]
[1768665038574,0.03309983,95397.0,95393.0,0.01064394]
[1768665038778,0.02261733,95396.0,95393.0,0.01064394]
[1768665039118,0.02261733,95395.0,95393.0,0.06305861]
[1768665039463,0.02261733,95394.0,95393.0,0.06305861]
[1768665039582,0.0104825,95397.0,95394.0,0.01048283]
[1768665040391,0.0104824,95398.0,95395.0,0.01048272]
[1768665040856,0.01048229,95399.0,95396.0,0.01048261]
[1768665041344,0.06289255,95401.0,95396.0,0.01048261]
[1768665041904,0.01048207,95401.0,95396.0,0.0628957]
[1768665042311,0.01048207,95401.0,95397.0,0.0104825]
[1768665042579,0.01048218,95400.0,95397.0,0.0104825]
[1768665042716,0.01048207,95401.0,95398.0,0.0104824]
[1768665042926,0.01048185,95403.0,95399.0,0.01048229]
[1768665043111,0.01048196,95402.0,95399.0,0.01048229]
[1768665043713,0.01048196,95402.0,95398.0,0.0104824]
[1768665044204,0.06289176,95402.0,95398.0,0.0104824]
[1768665044410,0.01048196,95402.0,95398.0,0.0104824]
[1768665045139,0.01048196,95402.0,95399.0,0.01048229]
[1768665045562,0.01048185,95403.0,95399.0,0.06289372]
[1768665045736,0.01048185,95403.0,95399.0,0.01048229]
[1768665046959,0.01048207,95401.0,95398.0,0.0104824]
[1768665048781,0.06289123,95403.0,95398.0,0.0104824]
[1768665049163,0.01048196,95402.0,95398.0,0.0104824]
[1768665049368,0.09112276,95406.0,95398.0,0.0104824]
[1768665049369,0.01048163,95405.0,95399.0,0.01048229]
[1768665049568,0.06289126,95403.0,95399.0,0.01048229]
[1768665049814,0.01048185,95403.0,95399.0,0.01048229]
[1768665050336,0.06289114,95403.0,95399.0,0.01048229]
[1768665050541,0.01048196,95402.0,95399.0,0.01048229]
[1768665050677,0.01048196,95402.0,95399.0,0.01028654]
[1768665051263,0.01048207,95401.0,95398.0,0.0104824]
[1768665051831,0.01048185,95403.0,95399.0,0.01048229]
[1768665052017,0.01048196,95402.0,95399.0,0.01048229]
[1768665052394,0.01048196,95402.0,95398.0,0.0104824]
[1768665052594,0.01048196,95402.0,95399.0,0.01048229]
[1768665052900,0.01048196,95402.0,95398.0,0.0104824]
[1768665053111,0.01048196,95402.0,95399.0,0.01048229]
[1768665054085,0.01048196,95402.0,95398.0,0.0104824]
[1768665054293,0.01048196,95402.0,95399.0,0.01048229]
[1768665054860,0.0628922,95402.0,95398.0,0.0104824]
[1768665055358,0.01048207,95401.0,95397.0,0.0104825]
[1768665055707,0.01048207,95401.0,95398.0,0.0104824]
[1768665056295,0.0524109,95400.0,95395.0,0.01048272]
[1768665057068,0.01048196,95402.0,95396.0,0.01048261]
[1768665057275,0.01048185,95403.0,95399.0,0.01048229]
[1768665057493,0.06289044,95404.0,95400.0,0.01048218]
[1768665057695,0.01048185,95403.0,95400.0,0.01048218]
[1768665057892,0.01048185,95403.0,95399.0,0.01048229]
[1768665058069,0.01048185,95403.0,95399.0,0.06224918]
[1768665058275,0.01048185,95403.0,95399.0,0.00983777]
[1768665058693,0.01048196,95402.0,95399.0,0.00983777]
[1768665059529,0.01048207,95401.0,95397.0,0.0104825]
[1768665059879,0.01048207,95401.0,95398.0,0.0104824]
[1768665060221,0.01048196,95402.0,95398.0,0.06289438]
[1768665060586,0.01048207,95401.0,95398.0,0.0104824]
[1768665061011,0.0104824,95398.0,95393.0,0.01064394]
[1768665061187,0.0104825,95397.0,95393.0,0.01064394]
[1768665061597,0.05241419,95394.0,95387.0,0.01070394]
[1768665061802,0.01048272,95395.0,95388.0,0.01048349]
[1768665061803,0.01048305,95392.0,95388.0,0.01048349]
[1768665062014,0.01048305,95392.0,95387.0,0.06316917]
[1768665062015,0.01048305,95392.0,95387.0,0.01075121]
[1768665062225,0.06289886,95392.0,95387.0,0.01075121]
[1768665062830,0.01048305,95392.0,95389.0,0.01048338]
[1768665063287,0.01048283,95394.0,95389.0,0.01048338]
[1768665063492,0.01048283,95394.0,95389.0,0.06290002]
[1768665063693,0.01048283,95394.0,95390.0,0.06289958]
[1768665063894,0.01048294,95393.0,95390.0,0.01048327]
[1768665064579,0.01048305,95392.0,95387.0,0.01075121]
[1768665064984,0.05241598,95391.0,95387.0,0.01075121]
[1768665065766,0.01048305,95392.0,95387.0,0.01075121]
[1768665066176,0.01048316,95391.0,95387.0,0.01075121]
[1768665066634,0.01048305,95392.0,95388.0,0.01048349]
[1768665066804,0.01048294,95393.0,95389.0,0.01048338]
[1768665066973,0.01048305,95392.0,95388.0,0.01048349]
[1768665067775,0.01048316,95391.0,95388.0,0.01048349]
[1768665068449,0.01048316,95391.0,95387.0,0.01075121]
[1768665068854,0.06289837,95392.0,95387.0,0.01075121]
[1768665068855,0.01048305,95392.0,95388.0,0.06290098]
[1768665068990,0.01048305,95392.0,95388.0,0.01048349]
[1768665069403,0.06289776,95393.0,95389.0,0.01048338]
[1768665069404,0.01048294,95393.0,95389.0,0.01048338]
[1768665069619,0.01048283,95394.0,95390.0,0.01048327]
[1768665069945,0.01048305,95392.0,95388.0,0.06290092]
[1768665070114,0.01048283,95394.0,95390.0,0.01048327]
[1768665070519,0.01048294,95393.0,95388.0,0.01048349]
[1768665071063,0.05241577,95392.0,95387.0,0.0104836]
[1768665071275,0.01048294,95393.0,95389.0,0.01048338]
[1768665072014,0.01048305,95392.0,95389.0,0.01048338]
[1768665072231,0.01048305,95392.0,95388.0,0.01048349]
[1768665072432,0.01048316,95391.0,95388.0,0.01048349]
[1768665072967,0.01048327,95390.0,95387.0,0.0104836]
[1768665073170,0.01048316,95391.0,95387.0,0.0104836]
[1768665073347,0.01048327,95390.0,95386.0,0.01048371]
[1768665073696,0.01048338,95389.0,95385.0,0.01048382]
[1768665074027,0.01048349,95388.0,95383.0,0.06290424]
[1768665074224,0.01048338,95389.0,95384.0,0.01048393]
[1768665074425,0.01048327,95390.0,95385.0,0.01048382]
[1768665074649,0.01048327,95390.0,95387.0,0.0104836]
[1768665075325,0.01048316,95391.0,95387.0,0.0104836]
[1768665075326,0.01048283,95394.0,95390.0,0.01048327]
[1768665075732,0.01048294,95393.0,95390.0,0.01048327]
[1768665075936,0.01048261,95396.0,95390.0,0.01048327]
[1768665076179,0.01048261,95396.0,95392.0,0.01048305]
[1768665077589,0.06289637,95395.0,95391.0,0.01048316]
[1768665077780,0.01048283,95394.0,95390.0,0.01048327]
[1768665078424,0.01048294,95393.0,95390.0,0.01048327]
[1768665078833,0.01048305,95392.0,95389.0,0.01048338]
[1768665079907,0.01048294,95393.0,95389.0,0.01048338]
[1768665080111,0.01048283,95394.0,95389.0,0.01048338]
[1768665080479,0.02826418,95397.0,95392.0,0.01048305]
[1768665080645,0.01048261,95396.0,95393.0,0.01048294]
[1768665080851,0.02826418,95397.0,95393.0,0.01048294]
[1768665081188,0.01048261,95396.0,95392.0,0.01048305]
[1768665081380,0.03874668,95397.0,95393.0,0.01048294]
[1768665081563,0.03874668,95397.0,95394.0,0.01048283]
[1768665081763,0.03874668,95397.0,95392.0,0.01048305]
[1768665081764,0.02260269,95396.0,95392.0,0.01048305]
[1768665081969,0.02260269,95395.0,95392.0,0.05241529]
[1768665082166,0.02260269,95394.0,95392.0,0.01048305]
[1768665082381,0.02260269,95393.0,95392.0,0.06289834]
[1768665082576,0.02260269,95393.0,95392.0,0.01048305]
[1768665082986,0.02260269,95393.0,95392.0,0.06289834]
[1768665084268,0.01048229,95399.0,95395.0,0.01048272]
[1768665085596,0.06289452,95398.0,95393.0,0.01048294]
[1768665085858,0.06289452,95398.0,95393.0,0.01028781]
[1768665086058,0.01048261,95396.0,95393.0,0.01028781]
[1768665086804,0.01048272,95395.0,95391.0,0.01048316]
[1768665087225,0.06289649,95395.0,95391.0,0.01048316]
[1768665087421,0.01048272,95395.0,95391.0,0.01048316]
[1768665087783,0.01048272,95395.0,95392.0,0.01048305]
[1768665087985,0.0104824,95398.0,95395.0,0.01048272]
[1768665088231,0.0104824,95398.0,95393.0,0.01048294]
[1768665088573,0.01048261,95396.0,95392.0,0.01048305]
[1768665088804,0.01048261,95396.0,95392.0,0.0103926]
[1768665089000,0.01048272,95395.0,95392.0,0.0103926]
[1768665089203,0.01048272,95395.0,95390.0,0.05241626]
[1768665089204,0.01048294,95393.0,95389.0,0.01048338]
[1768665089487,0.06290012,95390.0,95384.0,0.06290351]
[1768665089691,0.01023189,95389.0,95385.0,0.01048382]
[1768665090090,0.01039945,95390.0,95386.0,0.01048371]
[1768665090314,0.01039945,95390.0,95389.0,0.00025149]
[1768665090491,0.06281584,95390.0,95389.0,0.00025149]
[1768665090816,0.01039945,95390.0,95389.0,0.00025149]
[1768665091223,0.01048316,95391.0,95389.0,0.00025149]
[1768665091418,0.06289862,95392.0,95389.0,0.00025149]
[1768665091419,0.03874614,95402.0,95389.0,0.00025149]
[1768665091659,0.05241362,95396.0,95389.0,0.0525775]
[1768665091848,0.01048283,95394.0,95391.0,0.01048316]
[1768665091982,0.01048283,95394.0,95391.0,0.01039272]
[1768665092184,0.01048283,95394.0,95390.0,0.01048327]
[1768665092185,0.01048294,95393.0,95390.0,0.01048327]
[1768665092391,0.01048294,95393.0,95389.0,0.01064443]
[1768665093450,0.01048294,95393.0,95390.0,0.01048327]
[1768665093647,0.02826418,95396.0,95390.0,0.01048327]
[1768665093852,0.01048272,95395.0,95391.0,0.01048316]
[1768665094052,0.01048272,95395.0,95390.0,0.01048327]
[1768665094053,0.02826418,95394.0,95390.0,0.01048327]
[1768665094390,0.0387469,95395.0,95390.0,0.01048327]
[1768665094570,0.01048283,95394.0,95390.0,0.01048327]
[1768665095171,0.01048294,95393.0,95389.0,0.01064443]
[1768665095950,0.01048294,95393.0,95389.0,0.01055398]
[1768665096385,0.01048305,95392.0,95389.0,0.01055398]
[1768665097699,0.01048294,95393.0,95389.0,0.72972356]
[1768665097871,0.41915811,95430.0,95394.0,0.01048283]
[1768665097872,0.0104825,95397.0,95394.0,0.01048283]
[1768665098072,0.01048283,95394.0,95390.0,0.01048327]
[1768665098502,0.01048305,95392.0,95389.0,7.06e-05]
[1768665099084,0.01048305,95392.0,95389.0,0.01055398]
[1768665099824,0.01048283,95394.0,95390.0,0.01048327]
[1768665101053,0.01048283,95394.0,95391.0,0.01048316]
[1768665102938,0.01048305,95392.0,95389.0,7.06e-05]
[1768665103246,0.02254029,95391.0,95389.0,7.06e-05]
[1768665103464,0.02254029,95390.0,95389.0,7.06e-05]
[1768665103874,0.01048305,95392.0,95389.0,7.06e-05]
[1768665104586,0.06289851,95392.0,95389.0,7.06e-05]
[1768665104933,0.05241639,95390.0,95389.0,7.06e-05]
[1768665105934,0.05241588,95391.0,95389.0,7.06e-05]
[1768665106260,0.05241639,95390.0,95389.0,7.06e-05]
[1768665107861,0.07495585,95390.0,95389.0,7.06e-05]
[1768665108642,0.07495581,95390.0,95389.0,7.06e-05]
[1768665108946,0.05241639,95390.0,95389.0,7.06e-05]
[1768665109430,0.05241597,95391.0,95389.0,7.06e-05]
[1768665109637,0.05241604,95391.0,95389.0,7.06e-05]
[1768665109998,0.02253943,95390.0,95389.0,7.06e-05]
[1768665110754,0.02253943,95390.0,95387.0,0.0104836]
[1768665110755,0.02253943,95390.0,95387.0,0.06290157]
[1768665110886,0.06289812,95394.0,95387.0,0.06290157]
[1768665110887,0.02253943,95389.0,95388.0,0.05241749]
[1768665111641,0.02253943,95389.0,95386.0,0.01048371]
[1768665111850,0.01048349,95388.0,95385.0,0.01048382]
[1768665112287,0.06290119,95388.0,95384.0,0.01048393]
[1768665112450,0.0629017,95387.0,95383.0,0.01054352]
[1768665112849,0.01048371,95386.0,95383.0,5.948e-05]
[1768665113602,0.01048371,95386.0,95383.0,0.01054352]
[1768665113778,0.01048349,95388.0,95384.0,0.01048393]
[1768665113982,0.01048338,95389.0,95385.0,0.01048382]
[1768665114942,0.01048338,95389.0,95385.0,0.06290294]
[1768665115183,0.01048338,95389.0,95386.0,0.01048371]
[1768665116224,0.0104836,95387.0,95384.0,0.01048393]
[1768665116784,0.0104836,95387.0,95383.0,0.01054352]
[1768665116985,0.01048338,95389.0,95384.0,0.01048393]
[1768665117784,0.01048338,95389.0,95384.0,0.06290343]
[1768665118183,0.01048338,95389.0,95385.0,0.01048382]
[1768665118393,0.01048338,95389.0,95385.0,0.06290287]
[1768665118612,0.01048338,95389.0,95385.0,0.01048382]
[1768665118947,0.01048338,95389.0,95386.0,0.01048371]
[1768665119350,0.01039955,95389.0,95386.0,0.01048371]
[1768665119712,0.06281652,95389.0,95385.0,0.01048382]
[1768665120138,0.01039955,95389.0,95385.0,0.01048382]
[1768665120336,0.01039955,95389.0,95385.0,0.0629028]
[1768665120541,0.01039955,95389.0,95385.0,0.01048382]
[1768665120742,0.01048327,95390.0,95386.0,0.01048371]
[1768665121556,0.06289873,95393.0,95386.0,0.01048371]
[1768665121557,0.01048305,95392.0,95388.0,0.01048349]
[1768665122758,0.06289835,95392.0,95386.0,0.01048371]
[1768665122958,0.03757853,95423.0,95397.0,0.0104825]
[1768665123161,0.01048086,95412.0,95406.0,0.01048152]
[1768665123506,0.6940789,95415.0,95407.0,0.01048141]
[1768665123795,0.6940789,95415.0,95412.0,0.01048086]
[1768665123991,0.6940789,95415.0,95410.0,0.01048108]
[1768665124216,0.01047932,95426.0,95422.0,0.01047976]
[1768665124499,0.01064021,95427.0,95424.0,0.01047954]
[1768665124500,0.000161,95427.0,95424.0,0.01047954]
[1768665124733,0.000161,95427.0,95422.0,0.01038934]
[1768665124933,0.000161,95427.0,95423.0,0.01047965]
[1768665125133,0.00063299,95427.0,95424.0,0.01047954]
[1768665125345,0.01009217,95429.0,95424.0,0.01047954]
[1768665125521,0.01047921,95427.0,95423.0,0.01047965]
[1768665125718,0.06253658,95429.0,95424.0,0.01047954]
[1768665125719,4.944e-05,95429.0,95424.0,0.01047954]
[1768665125867,4.944e-05,95429.0,95425.0,0.01047943]
[1768665126069,4.944e-05,95429.0,95426.0,0.01047932]
[1768665127097,4.944e-05,95429.0,95427.0,0.05239599]
[1768665127844,4.944e-05,95429.0,95426.0,0.01047932]
[1768665130314,4.944e-05,95429.0,95426.0,0.0628759]
[1768665130515,4.944e-05,95429.0,95425.0,0.01047943]
[1768665130755,0.01047921,95427.0,95422.0,0.127]
[1768665130955,0.0104791,95428.0,95423.0,0.01047965]
[1768665131178,0.0104791,95428.0,95424.0,0.01047954]
[1768665131809,0.0104791,95428.0,95424.0,0.0103891]
[1768665131960,0.0104791,95428.0,95424.0,0.01047954]
[1768665132170,0.01052843,95429.0,95425.0,0.01047943]
[1768665132368,0.01052843,95429.0,95424.0,0.01047924]
[1768665132586,0.0104791,95428.0,95425.0,0.01047943]
[1768665133123,0.01052843,95429.0,95425.0,0.01047943]
[1768665133258,0.01052843,95429.0,95425.0,0.010389]
[1768665134175,0.0104791,95428.0,95424.0,0.001]
[1768665134375,0.06287463,95428.0,95423.0,0.01047965]
[1768665134580,0.0104791,95428.0,95424.0,0.01047954]
[1768665134785,0.06287541,95427.0,95422.0,0.13747976]
[1768665135188,0.06287686,95425.0,95422.0,0.127]
[1768665135398,0.06287686,95425.0,95424.0,0.001]
[1768665135795,0.01047965,95423.0,95420.0,0.127]
[1768665136000,0.01047943,95425.0,95421.0,0.01047987]
[1768665136201,0.01047943,95425.0,95422.0,0.001]
[1768665136408,0.000161,95475.0,95419.0,0.127]
[1768665136409,0.05239991,95420.0,95419.0,0.127]
[1768665136612,0.01047976,95422.0,95419.0,0.127]
[1768665137418,0.05239985,95421.0,95419.0,0.127]
[1768665137658,0.05239936,95421.0,95419.0,0.127]
[1768665137872,0.0104802,95418.0,95413.0,0.01048075]
[1768665138074,0.06288132,95418.0,95413.0,0.01048075]
[1768665138456,0.01047998,95420.0,95414.0,0.01048064]
[1768665138651,0.01047998,95420.0,95415.0,0.05240239]
[1768665138864,0.01047855,95433.0,95428.0,0.0104791]
[1768665139060,0.01047844,95434.0,95429.0,0.01047899]
[1768665139282,0.01047833,95435.0,95430.0,0.01047888]
[1768665139488,0.127,95436.0,95433.0,0.01047855]
[1768665139710,0.01047723,95445.0,95426.0,0.25306503]
[1768665139711,0.5050681,95450.0,95443.0,0.01047745]
[1768665139972,0.5050681,95450.0,95445.0,0.05238619]